[Event "*** MasterClass Titled Tuesday Blitz"]
[Site "Chess.com"]
[Date "2017.10.03"]
[Round "8"]
[White "Konavets"]
[Black "petrpalachev"]
[Result "1-0"]
[WhiteElo "2787"]
[BlackElo "2600"]
[TimeControl "180+2"]
[EndTime "14:51:00 PDT"]
[Termination "Konavets won by resignation"]

1. e4 {[%clk 0:03:01.9]} 1... e6 {[%clk 0:03:01.3]} 2. d4 {[%clk 0:03:01.4]}
2... d5 {[%clk 0:03:02.8]} 3. Nc3 {[%clk 0:03:03.2]} 3... Nf6 {[%clk 0:03:03.6]}
4. e5 {[%clk 0:03:04.3]} 4... Nfd7 {[%clk 0:03:05.2]} 5. f4 {[%clk 0:03:06.2]}
5... c5 {[%clk 0:03:06.6]} 6. Nf3 {[%clk 0:03:07.8]} 6... Be7 {[%clk 0:03:08.1]}
7. Be3 {[%clk 0:03:09]} 7... b6 {[%clk 0:03:08.4]} 8. Qd2 {[%clk 0:03:00.5]}
8... O-O {[%clk 0:03:05.4]} 9. h4 {[%clk 0:03:01.7]} 9... cxd4 {[%clk
0:03:05.7]} 10. Bxd4 {[%clk 0:02:57.4]} 10... Nc6 {[%clk 0:03:03.8]} 11. Bf2
{[%clk 0:02:58.5]} 11... f5 {[%clk 0:02:43]} 12. Bb5 {[%clk 0:02:54.2]} 12...
Ndb8 {[%clk 0:02:41.2]} 13. h5 {[%clk 0:02:53]} 13... Ba6 {[%clk 0:02:35.7]} 14.
a4 {[%clk 0:02:51.8]} 14... Qc8 {[%clk 0:02:26.8]} 15. h6 {[%clk 0:02:24]} 15...
g6 {[%clk 0:02:27]} 16. Bh4 {[%clk 0:02:25.2]} 16... Bxh4+ {[%clk 0:01:18.2]}
17. Rxh4 {[%clk 0:02:25.4]} 17... Bb7 {[%clk 0:01:20.1]} 18. g4 {[%clk
0:02:12.3]} 18... a6 {[%clk 0:01:20.1]} 19. gxf5 {[%clk 0:02:08]} 19... axb5
{[%clk 0:01:08.7]} 20. fxg6 {[%clk 0:02:08.5]} 20... hxg6 {[%clk 0:01:10]} 21.
Nxb5 {[%clk 0:02:07.3]} 21... Qd7 {[%clk 0:01:00.6]} 22. Nd6 {[%clk 0:01:59.5]}
22... Ne7 {[%clk 0:01:01.6]} 23. Rg4 {[%clk 0:01:26.2]} 23... Nbc6 {[%clk
0:00:53.2]} 24. Qg2 {[%clk 0:00:41.5]} 24... Kh7 {[%clk 0:00:37.6]} 25. Ng5+
{[%clk 0:00:39.9]} 25... Kh8 {[%clk 0:00:39]} 26. Ndf7+ {[%clk 0:00:36.5]} 26...
Rxf7 {[%clk 0:00:36.3]} 27. Nxf7+ {[%clk 0:00:38.4]} 27... Kh7 {[%clk
0:00:38.1]} 28. Ng5+ {[%clk 0:00:39]} 28... Kh8 {[%clk 0:00:39.5]} 29. Nf7+
{[%clk 0:00:28.4]} 29... Kh7 {[%clk 0:00:40.3]} 30. Ra3 {[%clk 0:00:30.1]} 30...
Rf8 {[%clk 0:00:31.2]} 31. Nd6 {[%clk 0:00:25.3]} 31... Nd4 {[%clk 0:00:27.5]}
32. Rc3 {[%clk 0:00:18.5]} 32... Bc6 {[%clk 0:00:26]} 33. b3 {[%clk 0:00:18.9]}
33... Ndf5 {[%clk 0:00:16.1]} 34. Nxf5 {[%clk 0:00:13.3]} 34... Rxf5 {[%clk
0:00:18]} 35. Rcg3 {[%clk 0:00:13.9]} 35... d4 {[%clk 0:00:18.6]} 36. Qd2 {[%clk
0:00:13.4]} 36... Qd5 {[%clk 0:00:18]} 37. Rg1 {[%clk 0:00:13.6]} 37... Qe4+
{[%clk 0:00:17.9]} 38. Kd1 {[%clk 0:00:15.1]} 38... Rf7 {[%clk 0:00:08]} 39. Kc1
{[%clk 0:00:15.3]} 39... Bd5 {[%clk 0:00:05.5]} 40. Kb2 {[%clk 0:00:16.2]} 40...
b5 {[%clk 0:00:03.4]} 41. a5 {[%clk 0:00:16.6]} 41... Rf8 {[%clk 0:00:05.3]} 42.
a6 {[%clk 0:00:16.3]} 42... Ra8 {[%clk 0:00:06.5]} 43. f5 {[%clk 0:00:15.3]}
43... Qxf5 {[%clk 0:00:07.2]} 44. Rf4 {[%clk 0:00:16.8]} 44... Qxe5 {[%clk
0:00:07]} 45. Rf7+ {[%clk 0:00:17.8]} 45... Kh8 {[%clk 0:00:08.5]} 46. Rxe7
{[%clk 0:00:18.3]} 46... Qf6 {[%clk 0:00:06.8]} 47. Rg7 {[%clk 0:00:17.5]} 47...
Rxa6 {[%clk 0:00:05.4]} 48. R1xg6 {[%clk 0:00:16.9]} 48... Qf1 {[%clk 0:00:04]}
49. Rg8+ {[%clk 0:00:18.4]} 1-0

[Event "*** MasterClass Titled Tuesday Blitz"]
[Site "Chess.com"]
[Date "2017.10.03"]
[Round "8"]
[White "VladDobrov"]
[Black "eldur16"]
[Result "1/2-1/2"]
[WhiteElo "2612"]
[BlackElo "2490"]
[TimeControl "180+2"]
[EndTime "14:51:35 PDT"]
[Termination "Game drawn by repetition"]

1. d4 {[%clk 0:03:01.9]} 1... Nf6 {[%clk 0:03:00.4]} 2. c4 {[%clk 0:03:02.9]}
2... e6 {[%clk 0:03:01.6]} 3. Nf3 {[%clk 0:03:04.2]} 3... Bb4+ {[%clk
0:03:01.6]} 4. Nbd2 {[%clk 0:03:05.2]} 4... b6 {[%clk 0:03:02.3]} 5. a3 {[%clk
0:03:06.2]} 5... Bxd2+ {[%clk 0:03:03.3]} 6. Qxd2 {[%clk 0:03:08.1]} 6... Bb7
{[%clk 0:03:03.6]} 7. e3 {[%clk 0:03:09.4]} 7... d6 {[%clk 0:03:00.4]} 8. Be2
{[%clk 0:03:10.4]} 8... a5 {[%clk 0:03:00.8]} 9. b3 {[%clk 0:03:09.4]} 9... Nbd7
{[%clk 0:03:01.2]} 10. O-O {[%clk 0:03:10.1]} 10... O-O {[%clk 0:03:01.7]} 11.
Bb2 {[%clk 0:03:10.7]} 11... Ne4 {[%clk 0:03:00.9]} 12. Qe1 {[%clk 0:03:10.5]}
12... f5 {[%clk 0:03:01.2]} 13. Nd2 {[%clk 0:03:11.7]} 13... Qg5 {[%clk
0:02:52.8]} 14. g3 {[%clk 0:02:55.3]} 14... Ndf6 {[%clk 0:02:47.8]} 15. f4
{[%clk 0:01:45.7]} 15... Qg6 {[%clk 0:02:38.9]} 16. Nf3 {[%clk 0:01:46.5]} 16...
Ng4 {[%clk 0:02:31.5]} 17. Bd3 {[%clk 0:01:43.8]} 17... Qh5 {[%clk 0:02:28.3]}
18. Qe2 {[%clk 0:01:42.1]} 18... Rf6 {[%clk 0:02:22.7]} 19. d5 {[%clk 0:00:49]}
19... Rh6 {[%clk 0:02:21.4]} 20. Nh4 {[%clk 0:00:50.2]} 20... exd5 {[%clk
0:02:01.6]} 21. cxd5 {[%clk 0:00:52.1]} 21... Bxd5 {[%clk 0:02:01.7]} 22. Bc4
{[%clk 0:00:53.3]} 22... Qf7 {[%clk 0:01:59.6]} 23. Nxf5 {[%clk 0:00:37.7]}
23... Qxf5 {[%clk 0:01:54.3]} 24. Bxd5+ {[%clk 0:00:37.7]} 24... Qxd5 {[%clk
0:01:55.1]} 25. Qxg4 {[%clk 0:00:39]} 25... Rg6 {[%clk 0:01:41.6]} 26. Qf3
{[%clk 0:00:39.5]} 26... Re8 {[%clk 0:01:41.7]} 27. b4 {[%clk 0:00:36.5]} 27...
Qb3 {[%clk 0:01:25.9]} 28. Bd4 {[%clk 0:00:35.3]} 28... c5 {[%clk 0:01:24.1]}
29. bxc5 {[%clk 0:00:35.4]} 29... bxc5 {[%clk 0:01:24.6]} 30. Rab1 {[%clk
0:00:25.3]} 30... Qf7 {[%clk 0:00:59.4]} 31. f5 {[%clk 0:00:25.8]} 31... Rg5
{[%clk 0:00:54]} 32. Ba1 {[%clk 0:00:25.1]} 32... Nd2 {[%clk 0:00:51.1]} 33. Qf4
{[%clk 0:00:26.5]} 33... h6 {[%clk 0:00:34.3]} 34. f6 {[%clk 0:00:21.3]} 34...
Nxb1 {[%clk 0:00:30.9]} 35. Rxb1 {[%clk 0:00:23.2]} 35... gxf6 {[%clk
0:00:29.9]} 36. Qxd6 {[%clk 0:00:24.3]} 36... Rd5 {[%clk 0:00:24.5]} 37. Qf4
{[%clk 0:00:24.9]} 37... Rd2 {[%clk 0:00:23.7]} 38. Bxf6 {[%clk 0:00:23.2]}
38... Qe6 {[%clk 0:00:20]} 39. e4 {[%clk 0:00:18.4]} 39... Qxe4 {[%clk
0:00:19.7]} 40. Qxd2 {[%clk 0:00:10.9]} 40... Qxb1+ {[%clk 0:00:20.5]} 41. Kg2
{[%clk 0:00:12.3]} 41... Qg6 {[%clk 0:00:20]} 42. Bc3 {[%clk 0:00:12.6]} 42...
c4 {[%clk 0:00:18.1]} 43. Qd5+ {[%clk 0:00:13.1]} 43... Qf7 {[%clk 0:00:19.1]}
44. Qd4 {[%clk 0:00:13.8]} 44... Kh7 {[%clk 0:00:19.5]} 45. h4 {[%clk 0:00:13]}
45... Rg8 {[%clk 0:00:19.3]} 46. Qe4+ {[%clk 0:00:11.2]} 46... Qg6 {[%clk
0:00:19.9]} 47. Qe7+ {[%clk 0:00:11.7]} 47... Rg7 {[%clk 0:00:20.5]} 48. Bxg7
{[%clk 0:00:13.3]} 48... Qxg7 {[%clk 0:00:21.3]} 49. Qe4+ {[%clk 0:00:14.9]}
49... Qg6 {[%clk 0:00:21.7]} 50. Qxc4 {[%clk 0:00:16.8]} 50... Qf5 {[%clk
0:00:22.7]} 51. a4 {[%clk 0:00:17.8]} 51... Kg7 {[%clk 0:00:22.6]} 52. Qd4+
{[%clk 0:00:18.8]} 52... Kh7 {[%clk 0:00:21.9]} 53. Qf4 {[%clk 0:00:19.8]} 53...
Qc2+ {[%clk 0:00:21.9]} 54. Kh3 {[%clk 0:00:21.3]} 54... Qc8+ {[%clk 0:00:20.6]}
55. Qg4 {[%clk 0:00:22.7]} 55... Qc6 {[%clk 0:00:21.5]} 56. Qf5+ {[%clk
0:00:23.5]} 56... Kg7 {[%clk 0:00:22.5]} 57. Qxa5 {[%clk 0:00:24.7]} 57... Qh1+
{[%clk 0:00:23]} 58. Kg4 {[%clk 0:00:26.1]} 58... Qe4+ {[%clk 0:00:22.9]} 59.
Kh3 {[%clk 0:00:23.6]} 59... Qh1+ {[%clk 0:00:23.7]} 60. Kg4 {[%clk 0:00:25.1]}
60... Qe4+ {[%clk 0:00:24.3]} 61. Kh3 {[%clk 0:00:24.6]} 61... Qh1+ {[%clk
0:00:24.9]} 1/2-1/2

[Event "*** MasterClass Titled Tuesday Blitz"]
[Site "Chess.com"]
[Date "2017.10.03"]
[Round "8"]
[White "Kacparov"]
[Black "Rodalquilar"]
[Result "1-0"]
[WhiteElo "2620"]
[BlackElo "2504"]
[TimeControl "180+2"]
[EndTime "14:51:37 PDT"]
[Termination "Kacparov won by checkmate"]

1. e4 {[%clk 0:02:52.9]} 1... Nf6 {[%clk 0:03:00.7]} 2. e5 {[%clk 0:02:51.8]}
2... Nd5 {[%clk 0:03:02.1]} 3. d4 {[%clk 0:02:52.3]} 3... d6 {[%clk 0:03:03.3]}
4. c4 {[%clk 0:02:51.4]} 4... Nb6 {[%clk 0:03:04.1]} 5. Nf3 {[%clk 0:02:48]}
5... Bg4 {[%clk 0:02:48]} 6. exd6 {[%clk 0:02:39.2]} 6... exd6 {[%clk
0:02:48.9]} 7. Nc3 {[%clk 0:02:36.8]} 7... Be7 {[%clk 0:02:48.9]} 8. h3 {[%clk
0:02:33.8]} 8... Bh5 {[%clk 0:02:48.9]} 9. Be3 {[%clk 0:02:34.2]} 9... O-O
{[%clk 0:02:36.2]} 10. b3 {[%clk 0:02:35]} 10... Nc6 {[%clk 0:02:35.7]} 11. Bd3
{[%clk 0:02:29.6]} 11... Bf6 {[%clk 0:02:22.3]} 12. g4 {[%clk 0:02:24.8]} 12...
Bg6 {[%clk 0:02:22.9]} 13. Rc1 {[%clk 0:02:11.7]} 13... Qd7 {[%clk 0:02:07.6]}
14. d5 {[%clk 0:02:02.9]} 14... Ne5 {[%clk 0:02:03]} 15. Nxe5 {[%clk 0:02:02.4]}
15... Bxe5 {[%clk 0:02:02.4]} 16. f4 {[%clk 0:01:53.7]} 16... Bxc3+ {[%clk
0:02:01.8]} 17. Rxc3 {[%clk 0:01:54.3]} 17... Rae8 {[%clk 0:01:56.6]} 18. Kf2
{[%clk 0:01:53.8]} 18... Be4 {[%clk 0:01:50.2]} 19. Re1 {[%clk 0:01:42.1]} 19...
f5 {[%clk 0:01:51.3]} 20. Bxe4 {[%clk 0:01:35.5]} 20... Rxe4 {[%clk 0:01:48.5]}
21. Bxb6 {[%clk 0:01:22.4]} 21... Rxf4+ {[%clk 0:01:31.1]} 22. Kg3 {[%clk
0:01:21.1]} 22... fxg4 {[%clk 0:01:32.4]} 23. Bd4 {[%clk 0:01:17.7]} 23... Rf3+
{[%clk 0:00:32.6]} 24. Rxf3 {[%clk 0:01:18]} 24... Rxf3+ {[%clk 0:00:33.6]} 25.
Kh2 {[%clk 0:01:14.7]} 25... Qf5 {[%clk 0:00:25]} 26. Qe2 {[%clk 0:01:11.4]}
26... Qf4+ {[%clk 0:00:21.9]} 27. Kg2 {[%clk 0:00:43.1]} 27... Rg3+ {[%clk
0:00:22.5]} 28. Kh1 {[%clk 0:00:43.5]} 28... Rxh3+ {[%clk 0:00:23.6]} 29. Kg1
{[%clk 0:00:43]} 29... Qxd4+ {[%clk 0:00:24.4]} 30. Kg2 {[%clk 0:00:43.4]} 30...
Qf6 {[%clk 0:00:05.9]} 31. Qe8+ {[%clk 0:00:40.5]} 31... Qf8 {[%clk 0:00:07]}
32. Qe6+ {[%clk 0:00:41.1]} 32... Kh8 {[%clk 0:00:08.2]} 33. Rf1 {[%clk
0:00:41.5]} 33... Rf3 {[%clk 0:00:09.1]} 34. Re1 {[%clk 0:00:32.2]} 34... Rf2+
{[%clk 0:00:10]} 35. Kg1 {[%clk 0:00:32.9]} 35... Rf6 {[%clk 0:00:11]} 36. Qd7
{[%clk 0:00:32.2]} 36... Rf7 {[%clk 0:00:09.3]} 37. Re8 {[%clk 0:00:32.5]} 37...
Kg8 {[%clk 0:00:06.9]} 38. Rxf8+ {[%clk 0:00:33.1]} 38... Rxf8 {[%clk
0:00:08.8]} 39. Qe6+ {[%clk 0:00:34]} 39... Rf7 {[%clk 0:00:09.1]} 40. Qxg4
{[%clk 0:00:34.7]} 40... g6 {[%clk 0:00:10.2]} 41. Qe6 {[%clk 0:00:33.9]} 41...
Kg7 {[%clk 0:00:11.6]} 42. Qc8 {[%clk 0:00:34.5]} 42... b6 {[%clk 0:00:11.8]}
43. b4 {[%clk 0:00:34.9]} 43... h5 {[%clk 0:00:12]} 44. Qb7 {[%clk 0:00:34.3]}
44... h4 {[%clk 0:00:07.6]} 45. Qxa7 {[%clk 0:00:34.8]} 45... g5 {[%clk
0:00:09.1]} 46. a4 {[%clk 0:00:33.7]} 46... Kg6 {[%clk 0:00:10.5]} 47. a5 {[%clk
0:00:34.3]} 47... bxa5 {[%clk 0:00:12.4]} 48. bxa5 {[%clk 0:00:34.7]} 48... g4
{[%clk 0:00:13.4]} 49. a6 {[%clk 0:00:35]} 49... g3 {[%clk 0:00:11.2]} 50. Qe3
{[%clk 0:00:34.9]} 50... Rf8 {[%clk 0:00:06.5]} 51. a7 {[%clk 0:00:35.1]} 51...
Kh5 {[%clk 0:00:07.4]} 52. Qa3 {[%clk 0:00:31.3]} 52... Ra8 {[%clk 0:00:07.4]}
53. Kg2 {[%clk 0:00:29.1]} 53... Kg4 {[%clk 0:00:08.6]} 54. Qf3+ {[%clk
0:00:29.9]} 54... Kg5 {[%clk 0:00:10.1]} 55. Kh3 {[%clk 0:00:30.4]} 55... Rxa7
{[%clk 0:00:11]} 56. Qg4+ {[%clk 0:00:31.6]} 56... Kf6 {[%clk 0:00:12.4]} 57.
Kxh4 {[%clk 0:00:31.2]} 57... Ra3 {[%clk 0:00:12.3]} 58. Qf4+ {[%clk 0:00:31.8]}
58... Ke7 {[%clk 0:00:12.7]} 59. Qe4+ {[%clk 0:00:32.5]} 59... Kd8 {[%clk
0:00:11]} 60. Kg5 {[%clk 0:00:32.7]} 60... Kc8 {[%clk 0:00:12.2]} 61. Kf6 {[%clk
0:00:33.5]} 61... Kb7 {[%clk 0:00:13.7]} 62. Ke7 {[%clk 0:00:34.2]} 62... Kb6
{[%clk 0:00:13.3]} 63. Qd4+ {[%clk 0:00:34.5]} 63... Kb7 {[%clk 0:00:13.7]} 64.
Qb2+ {[%clk 0:00:33.9]} 64... Kc8 {[%clk 0:00:15.1]} 65. Qxa3 {[%clk 0:00:34.6]}
65... g2 {[%clk 0:00:16.7]} 66. Qa8# {[%clk 0:00:35.2]} 1-0

[Event "*** MasterClass Titled Tuesday Blitz"]
[Site "Chess.com"]
[Date "2017.10.03"]
[Round "8"]
[White "Laico"]
[Black "WanderingPuppet"]
[Result "0-1"]
[WhiteElo "2132"]
[BlackElo "2324"]
[TimeControl "180+2"]
[EndTime "14:52:42 PDT"]
[Termination "WanderingPuppet won on time"]

1. e4 {[%clk 0:02:56.7]} 1... c5 {[%clk 0:03:00.1]} 2. Nc3 {[%clk 0:02:56.8]}
2... d6 {[%clk 0:03:01.3]} 3. f4 {[%clk 0:02:57.8]} 3... g6 {[%clk 0:03:02.6]}
4. Nf3 {[%clk 0:02:59.1]} 4... Bg7 {[%clk 0:03:04.2]} 5. Bb5+ {[%clk 0:02:59.8]}
5... Bd7 {[%clk 0:03:04.4]} 6. Qe2 {[%clk 0:02:56.3]} 6... Nc6 {[%clk
0:03:05.4]} 7. O-O {[%clk 0:02:56.9]} 7... Nd4 {[%clk 0:02:59.6]} 8. Nxd4 {[%clk
0:02:54.2]} 8... cxd4 {[%clk 0:02:57.5]} 9. Bxd7+ {[%clk 0:02:55.2]} 9... Qxd7
{[%clk 0:02:59.4]} 10. Nd1 {[%clk 0:02:56.3]} 10... Nf6 {[%clk 0:02:48.5]} 11.
d3 {[%clk 0:02:57.4]} 11... O-O {[%clk 0:02:46.4]} 12. f5 {[%clk 0:02:38]} 12...
Rac8 {[%clk 0:02:39.4]} 13. Bg5 {[%clk 0:02:38.4]} 13... Qc6 {[%clk 0:02:35.3]}
14. Rc1 {[%clk 0:02:38.2]} 14... Rce8 {[%clk 0:02:11.7]} 15. Qf2 {[%clk
0:02:31.9]} 15... h6 {[%clk 0:01:39]} 16. Bxf6 {[%clk 0:02:13.6]} 16... Bxf6
{[%clk 0:01:40.9]} 17. Qg3 {[%clk 0:02:11.4]} 17... Kg7 {[%clk 0:01:26.8]} 18.
h4 {[%clk 0:01:59.6]} 18... Qc5 {[%clk 0:01:10.4]} 19. Nf2 {[%clk 0:01:57.4]}
19... Qe5 {[%clk 0:00:50.8]} 20. Qg4 {[%clk 0:01:51]} 20... h5 {[%clk
0:00:49.7]} 21. Qh3 {[%clk 0:01:41.9]} 21... Qf4 {[%clk 0:00:47.2]} 22. Rcd1
{[%clk 0:01:21.4]} 22... Qxh4 {[%clk 0:00:45.3]} 23. Qf3 {[%clk 0:01:18.5]}
23... Be5 {[%clk 0:00:44.2]} 24. Nh3 {[%clk 0:01:18]} 24... g5 {[%clk
0:00:39.3]} 25. Qe2 {[%clk 0:01:16.8]} 25... Rh8 {[%clk 0:00:22.4]} 26. c3
{[%clk 0:01:15.4]} 26... Qg3 {[%clk 0:00:21.5]} 27. Qd2 {[%clk 0:01:00.2]} 27...
f6 {[%clk 0:00:19.8]} 28. c4 {[%clk 0:00:59.2]} 28... Qh2+ {[%clk 0:00:18.2]}
29. Kf2 {[%clk 0:00:59.4]} 29... Bg3+ {[%clk 0:00:17.8]} 30. Ke2 {[%clk
0:00:56.2]} 30... Qxg2+ {[%clk 0:00:17.5]} 31. Nf2 {[%clk 0:00:57.5]} 31... Bxf2
{[%clk 0:00:14.2]} 32. Rxf2 {[%clk 0:00:58.2]} 32... Qg4+ {[%clk 0:00:14.2]} 33.
Kf1 {[%clk 0:00:59.2]} 33... h4 {[%clk 0:00:14.5]} 34. Rg2 {[%clk 0:00:50.7]}
34... Qf3+ {[%clk 0:00:15.3]} 35. Kg1 {[%clk 0:00:52]} 35... Rh5 {[%clk
0:00:13.9]} 36. Rf1 {[%clk 0:00:46.6]} 36... Qe3+ {[%clk 0:00:13.7]} 37. Qxe3
{[%clk 0:00:47]} 37... dxe3 {[%clk 0:00:15.6]} 38. Re1 {[%clk 0:00:45.3]} 38...
Rg8 {[%clk 0:00:15.7]} 39. Rxe3 {[%clk 0:00:45.5]} 39... Kf7 {[%clk 0:00:17.3]}
40. Rg4 {[%clk 0:00:43.9]} 40... Rc8 {[%clk 0:00:16.9]} 41. Kh2 {[%clk
0:00:42.6]} 41... a6 {[%clk 0:00:16]} 42. Rg2 {[%clk 0:00:42.9]} 42... b5 {[%clk
0:00:16.5]} 43. b3 {[%clk 0:00:40.5]} 43... bxc4 {[%clk 0:00:14.3]} 44. dxc4
{[%clk 0:00:42.4]} 44... Rc5 {[%clk 0:00:14.7]} 45. Kh3 {[%clk 0:00:40.8]} 45...
Rh8 {[%clk 0:00:14.9]} 46. Rd2 {[%clk 0:00:39.6]} 46... a5 {[%clk 0:00:15.5]}
47. Rd4 {[%clk 0:00:35.5]} 47... Rhc8 {[%clk 0:00:15.8]} 48. Kg4 {[%clk
0:00:32.6]} 48... a4 {[%clk 0:00:15]} 49. Red3 {[%clk 0:00:24.9]} 49... axb3
{[%clk 0:00:15.3]} 50. axb3 {[%clk 0:00:26.8]} 50... Rb8 {[%clk 0:00:15.7]} 51.
Rd5 {[%clk 0:00:26.1]} 51... Rc7 {[%clk 0:00:15.4]} 52. Ra5 {[%clk 0:00:25.5]}
52... Rcb7 {[%clk 0:00:15.7]} 53. Ra3 {[%clk 0:00:26.3]} 53... Rb4 {[%clk
0:00:16.3]} 54. Re3 {[%clk 0:00:23.5]} 54... R4b7 {[%clk 0:00:14.4]} 55. Rd3
{[%clk 0:00:24.6]} 55... Rc7 {[%clk 0:00:14.1]} 56. Re3 {[%clk 0:00:24.5]} 56...
Rcb7 {[%clk 0:00:15.6]} 57. Rd3 {[%clk 0:00:25.7]} 57... Rc8 {[%clk 0:00:16.7]}
58. Re3 {[%clk 0:00:26.4]} 58... Rh8 {[%clk 0:00:16.5]} 59. Rd3 {[%clk
0:00:26.9]} 59... Ke8 {[%clk 0:00:16.7]} 60. Rd4 {[%clk 0:00:25.5]} 60... Kf7
{[%clk 0:00:15.8]} 61. Rd3 {[%clk 0:00:26.5]} 61... Rhb8 {[%clk 0:00:17.3]} 62.
Rh3 {[%clk 0:00:26.2]} 62... Rb4 {[%clk 0:00:17.1]} 63. Rd3 {[%clk 0:00:26.7]}
63... Rc8 {[%clk 0:00:18.2]} 64. Re3 {[%clk 0:00:27.4]} 64... Rc5 {[%clk
0:00:19.3]} 65. Rd3 {[%clk 0:00:28]} 65... Re5 {[%clk 0:00:20.1]} 66. Rd4 {[%clk
0:00:29]} 66... d5 {[%clk 0:00:18.1]} 67. exd5 {[%clk 0:00:26.2]} 67... Re3
{[%clk 0:00:19.2]} 68. Ra7 {[%clk 0:00:22.2]} 68... Rg3+ {[%clk 0:00:17.1]} 69.
Kh5 {[%clk 0:00:23.3]} 69... Rb8 {[%clk 0:00:13.5]} 0-1